{"text_format":"1","workbook":"xlsx","n_sheets":3,"sheets":["Troll3","Piletid","Sündmusprotseduurid"],"not_rendered":{"charts":0,"images":0,"macros":1,"external_links":0,"defined_names":10,"comments":0,"pivot_tables":0},"unopened":[],"bounds":{"document_bytes":16777216,"sheet_cells":100000,"rows_first":2000,"rows_last":500,"rows_between":2000,"halvings":0,"cell_chars":16384,"cell_head_chars":4096},"cells_cut":0,"cells_raw":0,"read":"whole","date_system":"1900"}

{"sheet":"Troll3","index":0,"n_rows":114,"n_cols":23,"rows_kept":114,"cut":false,"hidden":false,"merged":[]}
[]
[]
[]
[]
[]
[]
[]
[]
[]
[]
[]
[]
[]
[]
[]
[]
[]
[]
[]
[null,null,null,null,null,null,null,null,null,null,null,null,null,null,null,null,null,null,null,null,null,{"$f":"NOW()-TODAY()","v":"15:39:00.170"}]
[]
[null,null,{"$f":"_xlfn.FORMULATEXT(C24)","v":"=MID($B24;C$23;2)"},null,null,null,null,null,null,null,{"$f":"_xlfn.FORMULATEXT(K24)","v":"=IF(C24=\"\";\"\";TIME($A24;C24;0))"},null,null,null,null,null,null,null,"05:22:00",null,"praegu",{"$f":"NOW()-TODAY()","v":"15:39:00.170"}]
[null,null,1,3,5,7,9,11,13,null,null,null,null,null,null,null,null,null,"05:37:00",null,"mitmes"]
["5","223752",{"$f":"MID($B24,C$23,2)","v":"22"},{"$f":"MID($B24,D$23,2)","v":"37"},"52","","","","",null,{"$f":"IF(C24=\"\",\"\",TIME($A24,C24,0))","v":"05:22:00"},{"$f":"IF(D24=\"\",\"\",TIME($A24,D24,0))","v":"05:37:00"},"05:52:00","","","",null,null,"05:52:00",null,"aeg_1",{"$f":"_xlfn.MINIFS(K24:P42,K24:P42,\">=\" & V22)","v":"15:50:00"},{"$f":"_xlfn.FORMULATEXT(V24)","v":"=MINIFS(K24:P42;K24:P42;\">=\" & V22)"}]
["6","0722334454",{"$f":"MID($B25,C$23,2)","v":"07"},"22","33","44","54","","",null,{"$f":"IF(C25=\"\",\"\",TIME($A25,C25,0))","v":"06:07:00"},{"$f":"IF(D25=\"\",\"\",TIME($A25,D25,0))","v":"06:22:00"},{"$f":"IF(E25=\"\",\"\",TIME($A25,E25,0))","v":"06:33:00"},{"$f":"IF(F25=\"\",\"\",TIME($A25,F25,0))","v":"06:44:00"},{"$f":"IF(G25=\"\",\"\",TIME($A25,G25,0))","v":"06:54:00"},{"$f":"IF(H25=\"\",\"\",TIME($A25,H25,0))","v":""},null,null,"06:07:00",null,"aeg_2"]
["7","051526364757","05","15","26","36","47","57","",null,"07:05:00","07:15:00","07:26:00","07:36:00","07:47:00","07:57:00",null,null,"06:22:00",null,"aeg_3"]
["8","0718294153","07","18","29","41","53","","",null,"08:07:00","08:18:00","08:29:00","08:41:00","08:53:00","",null,null,"06:33:00"]
["9","0517284052","05","17","28","40","52","","",null,"09:05:00","09:17:00","09:28:00","09:40:00","09:52:00","",null,null,"06:44:00"]
["10","0416284052","04","16","28","40","52","","",null,"10:04:00","10:16:00","10:28:00","10:40:00","10:52:00","",null,null,"06:54:00"]
["11","0416284052","04","16","28","40","52","","",null,"11:04:00","11:16:00","11:28:00","11:40:00","11:52:00","",null,null,"07:05:00"]
["12","0416284052","04","16","28","40","52","","",null,"12:04:00","12:16:00","12:28:00","12:40:00","12:52:00","",null,null,"07:15:00"]
["13","0416284052","04","16","28","40","52","","",null,"13:04:00","13:16:00","13:28:00","13:40:00","13:52:00","",null,null,"07:26:00"]
["14","041628394959","04","16","28","39","49","59","",null,"14:04:00","14:16:00","14:28:00","14:39:00","14:49:00","14:59:00",null,null,"07:36:00"]
["15","0919293950","09","19","29","39","50","","",null,"15:09:00","15:19:00","15:29:00","15:39:00","15:50:00","",null,null,"07:47:00"]
["16","001121324354","00","11","21","32","43","54","",null,"16:00:00","16:11:00","16:21:00","16:32:00","16:43:00","16:54:00",null,null,"07:57:00"]
["17","0516273849","05","16","27","38","49","","",null,"17:05:00","17:16:00","17:27:00","17:38:00","17:49:00","",null,null,"08:07:00"]
["18","0011223548","00","11","22","35","48","","",null,"18:00:00","18:11:00","18:22:00","18:35:00","18:48:00","",null,null,"08:18:00"]
["19","0114274053","01","14","27","40","53","","",null,"19:01:00","19:14:00","19:27:00","19:40:00","19:53:00","",null,null,"08:29:00"]
["20","0720334558","07","20","33","45","58","","",null,"20:07:00","20:20:00","20:33:00","20:45:00","20:58:00","",null,null,"08:41:00"]
["21","11243750","11","24","37","50","","","",null,"21:11:00","21:24:00","21:37:00","21:50:00","","",null,null,"08:53:00"]
["22","0316294257","03","16","29","42","57","","",null,"22:03:00","22:16:00","22:29:00","22:42:00","22:57:00","",null,null,"09:05:00"]
["23","122742","12","27","42","","","","",null,"23:12:00","23:27:00","23:42:00","","","",null,null,"09:17:00"]
[null,null,null,null,null,null,null,null,null,null,null,null,null,null,null,null,null,null,"09:28:00"]
[null,null,null,null,null,null,null,null,null,null,null,null,null,null,null,null,null,null,"09:40:00"]
[null,null,"Data - Text to Columns",null,null,null,null,null,null,null,null,null,null,null,null,null,null,null,"09:52:00"]
[null,null,null,null,null,null,null,null,null,null,null,null,null,null,null,null,null,null,"10:04:00"]
["5","223752",22,37,52,null,null,null,null,null,null,null,null,null,null,null,null,null,"10:16:00"]
["6","0722334454",7,22,33,44,54,null,null,null,null,null,null,null,null,null,null,null,"10:28:00"]
["7","051526364757",5,15,26,36,47,57,null,null,null,null,null,null,null,null,null,null,"10:40:00"]
["8","0718294153",7,18,29,41,53,null,null,null,null,null,null,null,null,null,null,null,"10:52:00"]
["9","0517284052",5,17,28,40,52,null,null,null,null,null,null,null,null,null,null,null,"11:04:00"]
["10","0416284052",4,16,28,40,52,null,null,null,null,null,null,null,null,null,null,null,"11:16:00"]
["11","0416284052",4,16,28,40,52,null,null,null,null,null,null,null,null,null,null,null,"11:28:00"]
["12","0416284052",4,16,28,40,52,null,null,null,null,null,null,null,null,null,null,null,"11:40:00"]
["13","0416284052",4,16,28,40,52,null,null,null,null,null,null,null,null,null,null,null,"11:52:00"]
["14","041628394959",4,16,28,39,49,59,null,null,null,null,null,null,null,null,null,null,"12:04:00"]
["15","0919293950",9,19,29,39,50,null,null,null,null,null,null,null,null,null,null,null,"12:16:00"]
["16","001121324354",0,11,21,32,43,54,null,null,null,null,null,null,null,null,null,null,"12:28:00"]
["17","0516273849",5,16,27,38,49,null,null,null,null,null,null,null,null,null,null,null,"12:40:00"]
["18","0011223548",0,11,22,35,48,null,null,null,null,null,null,null,null,null,null,null,"12:52:00"]
["19","0114274053",1,14,27,40,53,null,null,null,null,null,null,null,null,null,null,null,"13:04:00"]
["20","0720334558",7,20,33,45,58,null,null,null,null,null,null,null,null,null,null,null,"13:16:00"]
["21","11243750",11,24,37,50,null,null,null,null,null,null,null,null,null,null,null,null,"13:28:00"]
["22","0316294257",3,16,29,42,57,null,null,null,null,null,null,null,null,null,null,null,"13:40:00"]
["23","122742",12,27,42,null,null,null,null,null,null,null,null,null,null,null,null,null,"13:52:00"]
[null,null,null,null,null,null,null,null,null,null,null,null,null,null,null,null,null,null,"14:04:00"]
[null,null,null,null,null,null,null,null,null,null,null,null,null,null,null,null,null,null,"14:16:00"]
[null,null,null,null,null,null,null,null,null,null,null,null,null,null,null,null,null,null,"14:28:00"]
[null,null,null,null,null,null,null,null,null,null,null,null,null,null,null,null,null,null,"14:39:00"]
[null,null,null,null,null,null,null,null,null,null,null,null,null,null,null,null,null,null,"14:49:00"]
[null,null,null,null,null,null,null,null,null,null,null,null,null,null,null,null,null,null,"14:59:00"]
[null,null,null,null,null,null,null,null,null,null,null,null,null,null,null,null,null,null,"15:09:00"]
[null,null,null,null,null,null,null,null,null,null,null,null,null,null,null,null,null,null,"15:19:00"]
[null,null,null,null,null,null,null,null,null,null,null,null,null,null,null,null,null,null,"15:29:00"]
[null,null,null,null,null,null,null,null,null,null,null,null,null,null,null,null,null,null,"15:39:00"]
[null,null,null,null,null,null,null,null,null,null,null,null,null,null,null,null,null,null,"15:50:00"]
[null,null,null,null,null,null,null,null,null,null,null,null,null,null,null,null,null,null,"16:00:00"]
[null,null,null,null,null,null,null,null,null,null,null,null,null,null,null,null,null,null,"16:11:00"]
[null,null,null,null,null,null,null,null,null,null,null,null,null,null,null,null,null,null,"16:21:00"]
[null,null,null,null,null,null,null,null,null,null,null,null,null,null,null,null,null,null,"16:32:00"]
[null,null,null,null,null,null,null,null,null,null,null,null,null,null,null,null,null,null,"16:43:00"]
[null,null,null,null,null,null,null,null,null,null,null,null,null,null,null,null,null,null,"16:54:00"]
[null,null,null,null,null,null,null,null,null,null,null,null,null,null,null,null,null,null,"17:05:00"]
[null,null,null,null,null,null,null,null,null,null,null,null,null,null,null,null,null,null,"17:16:00"]
[null,null,null,null,null,null,null,null,null,null,null,null,null,null,null,null,null,null,"17:27:00"]
[null,null,null,null,null,null,null,null,null,null,null,null,null,null,null,null,null,null,"17:38:00"]
[null,null,null,null,null,null,null,null,null,null,null,null,null,null,null,null,null,null,"17:49:00"]
[null,null,null,null,null,null,null,null,null,null,null,null,null,null,null,null,null,null,"18:00:00"]
[null,null,null,null,null,null,null,null,null,null,null,null,null,null,null,null,null,null,"18:11:00"]
[null,null,null,null,null,null,null,null,null,null,null,null,null,null,null,null,null,null,"18:22:00"]
[null,null,null,null,null,null,null,null,null,null,null,null,null,null,null,null,null,null,"18:35:00"]
[null,null,null,null,null,null,null,null,null,null,null,null,null,null,null,null,null,null,"18:48:00"]
[null,null,null,null,null,null,null,null,null,null,null,null,null,null,null,null,null,null,"19:01:00"]
[null,null,null,null,null,null,null,null,null,null,null,null,null,null,null,null,null,null,"19:14:00"]
[null,null,null,null,null,null,null,null,null,null,null,null,null,null,null,null,null,null,"19:27:00"]
[null,null,null,null,null,null,null,null,null,null,null,null,null,null,null,null,null,null,"19:40:00"]
[null,null,null,null,null,null,null,null,null,null,null,null,null,null,null,null,null,null,"19:53:00"]
[null,null,null,null,null,null,null,null,null,null,null,null,null,null,null,null,null,null,"20:07:00"]
[null,null,null,null,null,null,null,null,null,null,null,null,null,null,null,null,null,null,"20:20:00"]
[null,null,null,null,null,null,null,null,null,null,null,null,null,null,null,null,null,null,"20:33:00"]
[null,null,null,null,null,null,null,null,null,null,null,null,null,null,null,null,null,null,"20:45:00"]
[null,null,null,null,null,null,null,null,null,null,null,null,null,null,null,null,null,null,"20:58:00"]
[null,null,null,null,null,null,null,null,null,null,null,null,null,null,null,null,null,null,"21:11:00"]
[null,null,null,null,null,null,null,null,null,null,null,null,null,null,null,null,null,null,"21:24:00"]
[null,null,null,null,null,null,null,null,null,null,null,null,null,null,null,null,null,null,"21:37:00"]
[null,null,null,null,null,null,null,null,null,null,null,null,null,null,null,null,null,null,"21:50:00"]
[null,null,null,null,null,null,null,null,null,null,null,null,null,null,null,null,null,null,"22:03:00"]
[null,null,null,null,null,null,null,null,null,null,null,null,null,null,null,null,null,null,"22:16:00"]
[null,null,null,null,null,null,null,null,null,null,null,null,null,null,null,null,null,null,"22:29:00"]
[null,null,null,null,null,null,null,null,null,null,null,null,null,null,null,null,null,null,"22:42:00"]
[null,null,null,null,null,null,null,null,null,null,null,null,null,null,null,null,null,null,"22:57:00"]
[null,null,null,null,null,null,null,null,null,null,null,null,null,null,null,null,null,null,"23:12:00"]
[null,null,null,null,null,null,null,null,null,null,null,null,null,null,null,null,null,null,"23:27:00"]
[null,null,null,null,null,null,null,null,null,null,null,null,null,null,null,null,null,null,"23:42:00"]

{"sheet":"Piletid","index":1,"n_rows":193,"n_cols":9,"rows_kept":193,"cut":false,"hidden":false,"merged":[]}
["Bussiajad"]
["01:00 - 03:25 (2:25h) ABuss OÜ"]
["E R L"]
["Tallinn - Tartu"]
["ABuss OÜ"]
["05:40 - 08:15 (2:35h) Tartu Bussikeskus"]
["E T K N R L P"]
["Tallinn - Põltsamaa - Tartu"]
["Arilix OÜ"]
["06:30 - 09:00 (2:30h) Lux Express"]
["E T K N R L P"]
["Tallinn - Tartu"]
["Lux Express Estonia AS",null,null,"Algus","Lõpp"," Kestus"," Liin"," Päevad"," Firma"]
["07:00 - 09:30 (2:30h) Lux Express",null,null,"01:00:00","03:25:00","02:25:00","Tallinn - Tartu","E R L","ABuss OÜ"]
["E T K N R L P",null,null,"05:40:00","08:15:00","02:35:00","Tallinn - Põltsamaa - Tartu","E T K N R L P","Arilix OÜ"]
["Tallinn - Tartu",null,null,"06:30:00","09:00:00","02:30:00","Tallinn - Tartu","E T K N R L P","Lux Express Estonia AS"]
["Lux Express Estonia AS",null,null,"07:00:00","09:30:00","02:30:00","Tallinn - Tartu","E T K N R L P","Lux Express Estonia AS"]
["07:30 - 10:00 (2:30h) Lux Express",null,null,"07:30:00","10:00:00","02:30:00","Tallinn - Tartu - Võru","E T K N R L P","Lux Express Estonia AS"]
["E T K N R L P",null,null,"08:00:00","10:30:00","02:30:00","Tallinn - Tartu","E T K N R L P","Lux Express Estonia AS"]
["Tallinn - Tartu - Võru",null,null,"08:20:00","10:35:00","02:15:00","Tallinn-Tartu-Petseri-Pihkva","E T K N R L P","Esvil-Reisid AS"]
["Lux Express Estonia AS",null,null,"08:30:00","11:00:00","02:30:00","Tallinn - Tartu","E T K N R L P","Lux Express Estonia AS"]
["08:00 - 10:30 (2:30h) Lux Express",null,null,"09:00:00","11:35:00","02:35:00","Tallinn - Võru","E T K N R L P","MK Autobuss AS"]
["E T K N R L P",null,null,"09:00:00","11:30:00","02:30:00","Tallinn - Tartu","E T K N R L P","Lux Express Estonia AS"]
["Tallinn - Tartu",null,null,"09:30:00","12:00:00","02:30:00","Tallinn - Tartu","E T K N R L P","Lux Express Estonia AS"]
["Lux Express Estonia AS",null,null,"10:00:00","12:30:00","02:30:00","Tallinn - Tartu","E T K N R L P","Lux Express Estonia AS"]
["08:20 - 10:35 (2:15h) Esvil-Reisid AS",null,null,"10:00:00","12:30:00","02:30:00","Tallinn - Tartu","E T K N R L P","Lux Express Estonia AS"]
["E T K N R L P",null,null,"10:00:00","12:30:00","02:30:00","Tallinn - Tartu - Kiiev","E K R P","OOO \"Ukrainskie Linija\""]
["Tallinn-Tartu-Petseri-Pihkva",null,null,"10:30:00","13:00:00","02:30:00","Tallinn - Tartu - Võru","E T K N R L P","Lux Express Estonia AS"]
["Esvil-Reisid AS",null,null,"11:00:00","13:30:00","02:30:00","Tallinn - Tartu","E T K N R L P","Lux Express Estonia AS"]
["08:30 - 11:00 (2:30h) Lux Express",null,null,"11:30:00","14:00:00","02:30:00","Tallinn - Tartu","E T K N R L P","Lux Express Estonia AS"]
["E T K N R L P",null,null,"11:30:00","14:10:00","02:40:00","Tallinn - Tartu - Võru","E T K N L","MK Autobuss AS"]
["Tallinn - Tartu",null,null,"11:30:00","14:10:00","02:40:00","Tallinn - Tartu - Võru","R P","MK Autobuss AS"]
["Lux Express Estonia AS",null,null,"12:00:00","14:30:00","02:30:00","Tallinn - Tartu","E T K N R L P","Lux Express Estonia AS"]
["09:00 - 11:35 (2:35h) MK Autobuss AS",null,null,"12:30:00","15:00:00","02:30:00","Tallinn - Tartu","E T K N R L P","Lux Express Estonia AS"]
["E T K N R L P",null,null,"12:30:00","15:00:00","02:30:00","Tallinn - Tartu","R P","Lux Express Estonia AS"]
["Tallinn - Võru",null,null,"12:45:00","15:15:00","02:30:00","Tallinn - Tartu - Võru","E T K N R L P","Taisto Liinid OÜ"]
["MK Autobuss AS",null,null,"13:00:00","15:30:00","02:30:00","Tallinn - Tartu","E T K N R L P","Lux Express Estonia AS"]
["09:00 - 11:30 (2:30h) Lux Express",null,null,"13:30:00","16:00:00","02:30:00","Tallinn - Tartu","E T K N R L P","Lux Express Estonia AS"]
["E T K N R L P",null,null,"14:00:00","16:30:00","02:30:00","Tallinn - Tartu","E T K N R L P","Lux Express Estonia AS"]
["Tallinn - Tartu",null,null,"14:15:00","16:45:00","02:30:00","Tallinn - Võru","E T K N R L P","Bussipartner OÜ"]
["Lux Express Estonia AS",null,null,"14:30:00","17:00:00","02:30:00","Tallinn - Tartu","E T K N R L P","Lux Express Estonia AS"]
["09:30 - 12:00 (2:30h) Lux Express",null,null,"15:00:00","17:30:00","02:30:00","Tallinn - Tartu","E T K N R L P","Lux Express Estonia AS"]
["E T K N R L P",null,null,"15:00:00","17:30:00","02:30:00","Tallinn - Tartu","R P","Lux Express Estonia AS"]
["Tallinn - Tartu",null,null,"15:30:00","18:00:00","02:30:00","Tallinn - Tartu - Võru","E T K N R L P","Lux Express Estonia AS"]
["Lux Express Estonia AS",null,null,"15:30:00","18:00:00","02:30:00","Tallinn - Tartu","R P","Lux Express Estonia AS"]
["10:00 - 12:30 (2:30h) Simple Express Lisabuss",null,null,"16:00:00","18:30:00","02:30:00","Tallinn - Tartu","E T K N R L P","Lux Express Estonia AS"]
["E T K N R L P",null,null,"16:30:00","19:00:00","02:30:00","Tallinn - Võru","E T K N R L P","Lux Express Estonia AS"]
["Tallinn - Tartu",null,null,"17:00:00","19:30:00","02:30:00","Tallinn - Tartu","E T K N R L P","Lux Express Estonia AS"]
["Lux Express Estonia AS",null,null,"17:00:00","19:30:00","02:30:00","Tallinn - Tartu","R P","Lux Express Estonia AS"]
["10:00 - 12:30 (2:30h) Lux Express",null,null,"17:30:00","20:00:00","02:30:00","Tallinn - Tartu","E T K N R L P","Lux Express Estonia AS"]
["E T K N R L P",null,null,"18:00:00","20:30:00","02:30:00","Tallinn - Tartu","E T K N R L P","Lux Express Estonia AS"]
["Tallinn - Tartu",null,null,"18:00:00","20:30:00","02:30:00","Tallinn - Tartu","N R L P","Lux Express Estonia AS"]
["Lux Express Estonia AS",null,null,"18:30:00","21:00:00","02:30:00","Tallinn - Tartu","E T K N R L P","Lux Express Estonia AS"]
["10:00 - 12:30 (2:30h) OOO \"Ukrainskie Linija\"",null,null,"19:00:00","21:30:00","02:30:00","Tallinn - Tartu","E T K N R L P","Lux Express Estonia AS"]
["E K R P",null,null,"19:30:00","22:00:00","02:30:00","Tallinn - Tartu","E T K N R L P","Lux Express Estonia AS"]
["Tallinn - Tartu - Kiiev",null,null,"20:00:00","22:30:00","02:30:00","Tallinn - Tartu - Luhamaa","E T K N R L P","Lux Express Estonia AS"]
["OOO \"Ukrainskie Linija\"",null,null,"20:30:00","23:00:00","02:30:00","Tallinn - Tartu","R P","Estonian Lines OÜ"]
["10:30 - 13:00 (2:30h) Lux Express",null,null,"21:00:00","23:30:00","02:30:00","Tallinn - Tartu","E T K N R L P","Lux Express Estonia AS"]
["E T K N R L P",null,null,"21:30:00","00:00:00","02:30:00","Tallinn - Tartu - Võru","P","Taisto Liinid OÜ"]
["Tallinn - Tartu - Võru",null,null,"22:00:00","00:30:00","02:30:00","Tallinn - Tartu","E T K N R L P","Lux Express Estonia AS"]
["Lux Express Estonia AS",null,null,"23:00:00","01:45:00","02:45:00","Tallinn - Tartu","E T K N R L P","Lux Express Estonia AS"]
["11:00 - 13:30 (2:30h) Lux Express"]
["E T K N R L P"]
["Tallinn - Tartu"]
["Lux Express Estonia AS"]
["11:30 - 14:00 (2:30h) Lux Express"]
["E T K N R L P"]
["Tallinn - Tartu"]
["Lux Express Estonia AS"]
["11:30 - 14:10 (2:40h) MK Autobuss AS"]
["E T K N L"]
["Tallinn - Tartu - Võru"]
["MK Autobuss AS"]
["11:30 - 14:10 (2:40h) MK Autobuss AS"]
["R P"]
["Tallinn - Tartu - Võru"]
["MK Autobuss AS"]
["12:00 - 14:30 (2:30h) Lux Express"]
["E T K N R L P"]
["Tallinn - Tartu"]
["Lux Express Estonia AS"]
["12:30 - 15:00 (2:30h) Lux Express"]
["E T K N R L P"]
["Tallinn - Tartu"]
["Lux Express Estonia AS"]
["12:30 - 15:00 (2:30h) Simple Express"]
["R P"]
["Tallinn - Tartu"]
["Lux Express Estonia AS"]
["12:45 - 15:15 (2:30h) Taisto Liinid"]
["E T K N R L P"]
["Tallinn - Tartu - Võru"]
["Taisto Liinid OÜ"]
["13:00 - 15:30 (2:30h) Lux Express"]
["E T K N R L P"]
["Tallinn - Tartu"]
["Lux Express Estonia AS"]
["13:30 - 16:00 (2:30h) Lux Express"]
["E T K N R L P"]
["Tallinn - Tartu"]
["Lux Express Estonia AS"]
["14:00 - 16:30 (2:30h) Lux Express"]
["E T K N R L P"]
["Tallinn - Tartu"]
["Lux Express Estonia AS"]
["14:15 - 16:45 (2:30h) Bussipartner OÜ"]
["E T K N R L P"]
["Tallinn - Võru"]
["Bussipartner OÜ"]
["14:30 - 17:00 (2:30h) Lux Express"]
["E T K N R L P"]
["Tallinn - Tartu"]
["Lux Express Estonia AS"]
["15:00 - 17:30 (2:30h) Lux Express Lisabuss"]
["E T K N R L P"]
["Tallinn - Tartu"]
["Lux Express Estonia AS"]
["15:00 - 17:30 (2:30h) Lux Express Lisabuss"]
["R P"]
["Tallinn - Tartu"]
["Lux Express Estonia AS"]
["15:30 - 18:00 (2:30h) Lux Express"]
["E T K N R L P"]
["Tallinn - Tartu - Võru"]
["Lux Express Estonia AS"]
["15:30 - 18:00 (2:30h) Simple Express"]
["R P"]
["Tallinn - Tartu"]
["Lux Express Estonia AS"]
["16:00 - 18:30 (2:30h) Lux Express"]
["E T K N R L P"]
["Tallinn - Tartu"]
["Lux Express Estonia AS"]
["16:30 - 19:00 (2:30h) Lux Express"]
["E T K N R L P"]
["Tallinn - Võru"]
["Lux Express Estonia AS"]
["17:00 - 19:30 (2:30h) Lux Express Lisabuss"]
["E T K N R L P"]
["Tallinn - Tartu"]
["Lux Express Estonia AS"]
["17:00 - 19:30 (2:30h) Lux Express Lisabuss"]
["R P"]
["Tallinn - Tartu"]
["Lux Express Estonia AS"]
["17:30 - 20:00 (2:30h) Lux Express"]
["E T K N R L P"]
["Tallinn - Tartu"]
["Lux Express Estonia AS"]
["18:00 - 20:30 (2:30h) Lux Express Lisabuss"]
["E T K N R L P"]
["Tallinn - Tartu"]
["Lux Express Estonia AS"]
["18:00 - 20:30 (2:30h) Lux Express Lisabuss"]
["N R L P"]
["Tallinn - Tartu"]
["Lux Express Estonia AS"]
["18:30 - 21:00 (2:30h) Lux Express"]
["E T K N R L P"]
["Tallinn - Tartu"]
["Lux Express Estonia AS"]
["19:00 - 21:30 (2:30h) Lux Express"]
["E T K N R L P"]
["Tallinn - Tartu"]
["Lux Express Estonia AS"]
["19:30 - 22:00 (2:30h) Lux Express"]
["E T K N R L P"]
["Tallinn - Tartu"]
["Lux Express Estonia AS"]
["20:00 - 22:30 (2:30h) Lux Express"]
["E T K N R L P"]
["Tallinn - Tartu - Luhamaa"]
["Lux Express Estonia AS"]
["20:30 - 23:00 (2:30h) Estonian Lines OÜ"]
["R P"]
["Tallinn - Tartu"]
["Estonian Lines OÜ"]
["21:00 - 23:30 (2:30h) Lux Express"]
["E T K N R L P"]
["Tallinn - Tartu"]
["Lux Express Estonia AS"]
["21:30 - 00:00 (2:30h) Taisto Liinid"]
["P"]
["Tallinn - Tartu - Võru"]
["Taisto Liinid OÜ"]
["22:00 - 00:30 (2:30h) Lux Express"]
["E T K N R L P"]
["Tallinn - Tartu"]
["Lux Express Estonia AS"]
["23:00 - 01:45 (2:45h) Lux Express"]
["E T K N R L P"]
["Tallinn - Tartu"]
["Lux Express Estonia AS"]

{"sheet":"Sündmusprotseduurid","index":2,"n_rows":24,"n_cols":8,"rows_kept":24,"cut":false,"hidden":false,"merged":[]}
[]
[]
[]
[]
[]
[]
[]
["2025-04-15T15:30:32"]
[]
[]
[]
[]
[]
["2025-04-15T15:31:39"]
["2025-04-15T15:31:39"]
["2025-04-15T15:31:39",null,null,"2025-04-15T15:26:56"]
[null,null,null,null,null,null,null,"2025-04-15T15:26:56"]
["2025-04-15T15:30:03"]
["2025-04-15T15:26:57"]
[null,null,null,"2025-04-15T15:26:55"]
[]
[]
[]
[null,null,null,"2025-04-15T15:26:55"]